[Event "EYTCC Girls U18 2022"]
[Site "Thessaloniki"]
[Date "2022.07.18"]
[Round "7.7"]
[White "Sheikh, Anum"]
[Black "Demeter, Dorina"]
[Result "1/2-1/2"]
[ECO "C92"]
[WhiteElo "1799"]
[BlackElo "2176"]
[Annotator "TA"]
[PlyCount "81"]
[EventDate "2022.07.12"]
[EventType "team-tourn"]
[EventCountry "GRE"]
[SourceTitle "playchess.com"]
[Source "ChessBase"]
[SourceQuality "1"]
[WhiteTeam "England"]
[BlackTeam "Hungary"]
[WhiteTeamCountry "ENG"]
[BlackTeamCountry "HUN"]
[TimeControl "40/5400+30:1800+30"]

{[%evp 32,81,0,0,39,-10,19,0,3,-11,8,0,27,0,42,2,8,-48,-40,-45,-51,-47,-43,-117,-124,-108,-54,-40,0,0,0,0,0,-87,-109,-111,0,0,0,-15,0,0,0,0,0,6,113,0,0,-11,0,0]} 1. e4 {[%emt 0:00:02]} e5 {[%emt 0:00:13]} 2. Nf3 {[%emt 0:00:05]} Nc6 {[%emt 0:00:11]} 3. Bb5 {[%emt 0:00:05]} a6 {[%emt 0:00:14]} 4. Ba4 {[%emt 0:00:05]} Nf6 {[%emt 0:00:06]} 5. O-O {[%emt 0:00:19]} Be7 {[%emt 0:00:36]} 6. Re1 {[%emt 0:00:06]} b5 {[%emt 0:00:13]} 7. Bb3 {[%emt 0:00:06]} d6 {[%emt 0:00:39]} 8. c3 {[%emt 0:00:05]} O-O {[%emt 0:00:35]} 9. h3 {[%emt 0:00:07]} Re8 {[%emt 0:00:06]} 10. d4 {[%emt 0:00:13]} Bb7 {[%emt 0:00:28]} 11. Nbd2 {[%emt 0:00:05]} Bf8 {[%emt 0:00:09]} 12. a4 {[%emt 0:00:06]} h6 {[%emt 0:00:53]} 13. Bc2 {[%emt 0:00:33]} exd4 {[%emt 0:01:22]} 14. cxd4 {[%emt 0:00:07]} Nb4 {[%emt 0:00:04]} 15. Bb1 {[%emt 0:00:04]} c5 {[%emt 0:00:04]} 16. d5 {[%emt 0:00:06]} Nd7 {[%emt 0:00:05]} 17. Ra3 {[%emt 0:00:39]} f5 {[%emt 0:02:30] C92: Closed Ruy Lopez: 9...Be6, Karpov and Flohr-Zaitsev Variations.} 18. g4 {[%emt 0:00:43]} (18. Rae3 $14) 18... f4 {[%emt 0:04:20]} 19. axb5 {[%emt 0:09:04]} axb5 {[%emt 0:01:00]} 20. Nb3 {[%emt 0:06:03]} Ne5 {[%emt 0:06:38] [#]} 21. Bd2 $146 {[%emt 0:29:02]} (21. Bxf4 Nxf3+ 22. Qxf3 Qf6 23. Rxa8 Bxa8 $15) ({Predecessor:} 21. Rxa8 Qxa8 22. Nxe5 dxe5 23. d6 c4 24. Qd2 Na6 25. Na5 Rd8 26. b3 Rxd6 27. Qb2 {0-1 (38) Firat,B (2458)-Sabuk,P (2336) Pardubice 2014}) 21... Ra4 {[%emt 0:17:06]} 22. Nc1 {[%emt 0:08:54]} (22. Bxf4 Nxf3+ 23. Qxf3 Qf6 24. Rxa4 bxa4 $15) 22... Qa8 {[%emt 0:05:06]} 23. Nxe5 {[%emt 0:17:45]} (23. Bxb4 $5 cxb4 24. Rxa4 bxa4 25. Nd3 $11) 23... dxe5 {[%emt 0:00:54]} 24. Qf3 {[%emt 0:02:47]} (24. Bxb4 $11 cxb4 25. Rd3 (25. Rxa4 bxa4 26. Nd3 Bd6 $17)) 24... c4 $15 {[%emt 0:01:33]} 25. Rxa4 {[%emt 0:01:28]} Qxa4 {[%emt 0:01:00]} 26. Ne2 {[%emt 0:03:06]} Bc5 {[%emt 0:04:13]} 27. Nc3 {[%emt 0:03:17]} (27. Kg2 $15) 27... Qb3 $17 {[%emt 0:03:05]} 28. Bc1 {[%emt 0:04:34]} Bd4 {[%emt 0:05:27]} ({Better is} 28... Rb8 $17 29. Kg2 Bc8) 29. Qd1 $15 {[%emt 0:04:20]} Ra8 {[%emt 0:12:14]} 30. Qxb3 {[%emt 0:02:57]} cxb3 {[%emt 0:00:04]} 31. Nxb5 {[%emt 0:00:55]} Bc5 {[%emt 0:01:26]} 32. Na3 {[%emt 0:03:43]} (32. Bd2 $11) 32... Ba6 $17 {[%emt 0:01:20]} 33. Bd2 {[%emt 0:02:31] [#]} Nd3 {[%emt 0:06:22] Prevents Rc1.} (33... Na2 $1 $17 {White should prevent ...Bd4.} 34. Bxa2 bxa2) 34. Bxd3 $11 {[%emt 0:00:05]} Bxd3 {[%emt 0:00:15]} 35. Bc3 {[%emt 0:00:47]} Bd6 {[%emt 0:00:01][%mdl 1024] Black has compensation.} 36. f3 {[%emt 0:00:38]} Rc8 {[%emt 0:01:01]} 37. Nb1 {[%emt 0:01:44]} Bc5+ $1 {[%emt 0:03:30] This bishop pair is nice.} 38. Kg2 {[%emt 0:00:12] Hoping for Nd2.} Be3 {[%emt 0:00:32] [#]} (38... Bd4 $1 $11 {remains equal.}) 39. h4 {[%emt 0:01:11]} ({Don't go for} 39. Bxe5 $2 Rc2+ 40. Kh1 Bf2 $19) (39. d6 $1 $16) 39... Kf7 $1 {[%emt 0:03:42]} 40. h5 {[%emt 0:00:00]} ({Don't blunder} 40. Bxe5 $2 Rc2+ 41. Kh3 Rf2 $19) 40... Kf6 {[%emt 0:00:00]} 41. Rd1 {[%emt 0:08:21] Weighted Error Value: White=0.25 (precise) /Black=0.27 (precise)} 1/2-1/2

[Event "EYTCC Girls U18 2022"]
[Site "Thessaloniki"]
[Date "2022.07.18"]
[Round "7.8"]
[White "Juhasz, Judit"]
[Black "Pert, Nina"]
[Result "1-0"]
[ECO "B12"]
[WhiteElo "2037"]
[BlackElo "1703"]
[Annotator "TA"]
[PlyCount "59"]
[EventDate "2022.07.12"]
[EventType "team-tourn"]
[EventCountry "GRE"]
[SourceTitle "playchess.com"]
[Source "ChessBase"]
[SourceQuality "1"]
[WhiteTeam "Hungary"]
[BlackTeam "England"]
[WhiteTeamCountry "HUN"]
[BlackTeamCountry "ENG"]
[TimeControl "40/5400+30:1800+30"]

{[%evp 10,59,25,0,22,1,18,-8,-6,-27,-29,-25,-24,-31,-24,-21,-20,-21,-6,-46,-27,-24,-32,-26,0,-8,-7,-16,91,77,110,108,111,87,77,96,206,200,487,493,641,640,599,554,4786,2856,29983,3189,6060,2864,29998,29999]} 1. e4 {[%emt 0:00:02]} c6 {[%emt 0:00:06]} 2. d4 {[%emt 0:00:05]} d5 {[%emt 0:00:08]} 3. e5 {[%emt 0:00:04]} Bf5 {[%emt 0:00:18]} 4. h4 {[%emt 0:00:06]} h6 {[%emt 0:00:30]} 5. g4 {[%emt 0:00:13]} Bd7 {[%emt 0:00:22]} 6. f4 {[%emt 0:00:47]} c5 {[%emt 0:05:19] [#] B12: Caro-Kann: Advance Variation.} 7. Be3 $146 {[%emt 0:04:12]} ({Predecessor:} 7. c3 h5 8. g5 Qb6 9. Nf3 Bg4 10. Be2 e6 11. O-O Nc6 12. dxc5 Bxc5+ 13. Kg2 Nge7 14. b4 {0-1 (23) Calzetta Ruiz,M (2302)-Jaracz,P (2456) Chess.com INT 2020}) 7... Qb6 {[%emt 0:05:38]} 8. dxc5 {[%emt 0:07:05]} (8. Nc3 $5 {[%cal Rd4c5]} e6 9. Qd2 $11) 8... Qxb2 {[%emt 0:04:50] The position is equal.} 9. Bd4 {[%emt 0:01:34]} (9. Nd2 $5 {[%cal Ra1b1]}) 9... Qb4+ {[%emt 0:00:14]} 10. c3 {[%emt 0:01:03]} Qa5 {[%emt 0:01:35]} 11. Nd2 {[%emt 0:01:22]} e6 {[%emt 0:04:56]} 12. Nb3 {[%emt 0:01:30]} Qc7 {[%emt 0:00:58]} 13. a4 {[%emt 0:09:35]} h5 {[%emt 0:06:37] next ...hxg4 is good for Black.} 14. gxh5 {[%emt 0:01:25]} Nh6 {[%emt 0:01:18]} 15. Bd3 {[%emt 0:00:34]} Na6 {[%emt 0:05:02]} 16. Ne2 {[%emt 0:13:06]} Nxc5 {[%emt 0:01:04]} 17. Nxc5 {[%emt 0:02:32]} Bxc5 {[%emt 0:00:07]} 18. Rg1 {[%emt 0:06:40]} Rc8 {[%emt 0:14:08]} (18... Bf8 $11 {remains equal.}) 19. Rxg7 $16 {[%emt 0:03:51]} Qd8 {[%emt 0:00:37]} 20. Rg5 {[%emt 0:05:09] White is more active.} Be7 {[%emt 0:00:54]} 21. Ng3 {[%emt 0:05:43]} Qa5 22. Kf1 {[%emt 0:04:35]} Kf8 {[%emt 0:21:36] [#]} (22... Kd8 $16 {keeps fighting.}) 23. f5 $1 $18 {[%emt 0:03:58]} Bxg5 $2 {[%emt 0:04:42]} (23... Rxc3 {is a better defense.} 24. Bxc3 Qxc3) 24. hxg5 {[%emt 0:00:06]} ({Not} 24. fxe6 Bxh4 25. exd7 Rc6 $16) 24... Nxf5 {[%emt 0:00:47]} 25. Nxf5 {[%emt 0:00:51]} exf5 {[%emt 0:00:11]} 26. e6 $1 {[%emt 0:00:26][%cal Be5e6,Be6d7][%mdl 96] Discovered Attack} Rg8 {[%emt 0:03:45]} 27. exd7 {[%emt 0:00:17]} Rd8 {[%emt 0:00:41]} 28. h6 {[%emt 0:00:50]} (28. Qc1 $142 Rg7 29. h6 Rg6 30. h7 Ke7 31. Qf4 Kxd7 32. Qxf5+ Kc7 33. Qxf7+ Kb8 34. Qxg6) 28... Qc7 {[%emt 0:03:07]} 29. Qf3 {[%emt 0:01:17]} Qh2 {[%emt 0:03:43]} 30. Bc5+ {Weighted Error Value: White=0.10 (very precise) /Black=1.01} 1-0

[Event "EYTCC Girls U18 2022"]
[Site "Thessaloniki"]
[Date "2022.07.18"]
[Round "7.9"]
[White "Alexandri, Dimitra"]
[Black "Bondar, Daria"]
[Result "1/2-1/2"]
[ECO "A81"]
[WhiteElo "1683"]
[BlackElo "1566"]
[Annotator "NA COMBH"]
[PlyCount "62"]
[EventDate "2022.07.12"]
[EventType "team-tourn"]
[EventCountry "GRE"]
[SourceTitle "playchess.com"]
[Source "ChessBase"]
[SourceQuality "1"]
[WhiteTeam "Greece"]
[BlackTeam "Ukraine"]
[WhiteTeamCountry "GRE"]
[BlackTeamCountry "UKR"]
[TimeControl "40/5400+30:1800+30"]

1. d4 {[%emt 0:00:02]} f5 {[%emt 0:00:05]} 2. g3 {[%emt 0:00:09]} Nf6 {[%emt 0:00:06]} 3. Bg2 {[%emt 0:00:07]} e6 {[%emt 0:00:05]} 4. c4 {[%emt 0:00:15]} c6 {[%emt 0:00:04]} 5. Nf3 {[%emt 0:00:09]} d5 {[%emt 0:00:05]} 6. b3 {[%emt 0:00:33]} Bd6 {[%emt 0:00:36]} 7. O-O {[%emt 0:00:12]} Qe7 {[%emt 0:00:17]} 8. a4 {[%emt 0:00:44]} a5 {[%emt 0:00:51]} 9. Ba3 {[%emt 0:00:13]} Bxa3 {[%emt 0:00:08]} 10. Nxa3 {[%emt 0:00:08]} O-O {[%emt 0:00:21]} 11. Nc2 {[%emt 0:16:46]} b6 {[%emt 0:04:26]} 12. Ne5 {[%emt 0:05:03]} Bb7 {[%emt 0:04:06]} 13. Ne1 {[%emt 0:03:15]} Nbd7 {[%emt 0:13:44]} 14. N1f3 {[%emt 0:02:28]} c5 {[%emt 0:06:49]} 15. Rc1 {[%emt 0:11:28]} Rfd8 {[%emt 0:08:30]} 16. Nxd7 {[%emt 0:06:16]} Rxd7 {[%emt 0:06:44]} 17. e3 {[%emt 0:05:57]} Rc8 {[%emt 0:16:57]} 18. Qe2 {[%emt 0:08:18]} dxc4 {[%emt 0:09:24]} 19. Ne5 {[%emt 0:03:14]} Bxg2 {[%emt 0:02:45]} 20. Kxg2 {[%emt 0:00:12]} Rdd8 {[%emt 0:01:30]} 21. Rxc4 {[%emt 0:05:05]} cxd4 {[%emt 0:06:04]} 22. exd4 {[%emt 0:01:03]} Qb7+ {[%emt 0:04:55]} 23. Kg1 {[%emt 0:01:36]} Qe4 {[%emt 0:01:05]} 24. Qxe4 {[%emt 0:03:07]} Nxe4 {[%emt 0:00:35]} 25. Nc6 {[%emt 0:00:50]} Nd6 {[%emt 0:04:09]} 26. Nxd8 {[%emt 0:06:00]} Nxc4 {[%emt 0:00:03]} 27. bxc4 {[%emt 0:01:43]} Rxd8 {[%emt 0:00:04]} 28. Rd1 {[%emt 0:00:34]} Rc8 {[%emt 0:05:03]} 29. Rc1 {[%emt 0:00:30]} Rd8 {[%emt 0:01:12]} 30. Rd1 {[%emt 0:00:16]} Rc8 {[%emt 0:00:05]} 31. Rc1 {[%emt 0:01:16]} Rd8 {[%emt 0:00:11]} 1/2-1/2

[Event "EYTCC Girls U18 2022"]
[Site "Thessaloniki"]
[Date "2022.07.18"]
[Round "7.10"]
[White "Russeva, Viktoria"]
[Black "Alexandri, Vasiliki"]
[Result "1-0"]
[ECO "C45"]
[WhiteElo "1866"]
[BlackElo "1527"]
[Annotator "NA COMBH"]
[PlyCount "115"]
[EventDate "2022.07.12"]
[EventType "team-tourn"]
[EventCountry "GRE"]
[SourceTitle "playchess.com"]
[Source "ChessBase"]
[SourceQuality "1"]
[WhiteTeam "Ukraine"]
[BlackTeam "Greece"]
[WhiteTeamCountry "UKR"]
[BlackTeamCountry "GRE"]
[TimeControl "40/5400+30:1800+30"]

1. e4 {[%emt 0:00:05]} e5 {[%emt 0:00:00]} 2. Nf3 {[%emt 0:00:07]} Nc6 {[%emt 0:00:00]} 3. d4 {[%emt 0:00:05]} exd4 {[%emt 0:00:00]} 4. Nxd4 {[%emt 0:00:08]} Nf6 {[%emt 0:00:15]} 5. Nxc6 {[%emt 0:00:07]} bxc6 {[%emt 0:00:42]} 6. e5 {[%emt 0:00:06]} Nd5 {[%emt 0:00:46]} 7. c4 {[%emt 0:00:08]} Nb6 {[%emt 0:04:59]} 8. Bd3 {[%emt 0:00:54]} Qe7 {[%emt 0:01:54]} 9. O-O {[%emt 0:00:53]} g6 {[%emt 0:13:07]} 10. Nc3 {[%emt 0:00:57]} Bg7 {[%emt 0:02:10]} 11. Bf4 {[%emt 0:01:11]} O-O {[%emt 0:04:31]} 12. Re1 {[%emt 0:02:12]} Ba6 {[%emt 0:14:08]} 13. c5 {[%emt 0:01:41]} Bxd3 {[%emt 0:01:21]} 14. cxb6 {[%emt 0:00:49]} Bf5 {[%emt 0:00:39]} 15. bxc7 {[%emt 0:03:03]} Rac8 {[%emt 0:05:57]} 16. e6 {[%emt 0:06:02]} fxe6 {[%emt 0:01:07]} 17. Bd6 {[%emt 0:00:30]} Qf7 {[%emt 0:00:47]} 18. Bxf8 {[%emt 0:00:18]} Bxf8 {[%emt 0:00:57]} 19. Ne4 {[%emt 0:03:27]} d5 {[%emt 0:02:24]} 20. Ng3 {[%emt 0:01:30]} Rxc7 {[%emt 0:00:22]} 21. Nxf5 {[%emt 0:01:45]} exf5 {[%emt 0:01:50]} 22. Rc1 {[%emt 0:05:29]} c5 {[%emt 0:04:49]} 23. Re5 {[%emt 0:02:17]} Rd7 {[%emt 0:01:42]} 24. Qe2 {[%emt 0:01:54]} d4 {[%emt 0:02:34]} 25. b3 {[%emt 0:10:10]} Kg7 {[%emt 0:05:55]} 26. Qd3 {[%emt 0:02:38]} Bd6 {[%emt 0:00:14]} 27. Re2 {[%emt 0:04:58]} Re7 {[%emt 0:01:18]} 28. Rce1 {[%emt 0:00:47]} Rxe2 {[%emt 0:00:29]} 29. Rxe2 {[%emt 0:05:59]} Qd5 {[%emt 0:04:54]} 30. Qc4 {[%emt 0:02:26]} Qxc4 {[%emt 0:00:22]} 31. bxc4 {[%emt 0:02:07]} Kf6 {[%emt 0:01:04]} 32. Kf1 Bc7 {[%emt 0:00:00]} 33. Re8 {[%emt 0:19:52]} Ba5 {[%emt 0:00:00]} 34. Ra8 {[%emt 0:02:06]} Bb6 {[%emt 0:00:00]} 35. Ke2 {[%emt 0:00:15]} Ke5 {[%emt 0:00:00]} 36. g3 {[%emt 0:03:32]} h5 {[%emt 0:00:00]} 37. a4 {[%emt 0:03:49]} Kf6 {[%emt 0:00:00]} 38. Rc8 {[%emt 0:01:10]} Ke6 {[%emt 0:02:39]} 39. Kd3 {[%emt 0:00:00]} Kf6 {[%emt 0:00:00]} 40. f4 {[%emt 0:00:00]} Ke6 {[%emt 0:00:00]} 41. Rc6+ {[%emt 0:03:26]} Kf7 {[%emt 0:02:42]} 42. a5 {[%emt 0:01:07]} Bxa5 {[%emt 0:00:06]} 43. Rxc5 {[%emt 0:00:06]} Bb6 {[%emt 0:00:07]} 44. Rb5 {[%emt 0:00:10]} Ke6 {[%emt 0:00:49]} 45. c5 {[%emt 0:00:25]} Bd8 {[%emt 0:00:24]} 46. Kxd4 {[%emt 0:00:30]} a5 {[%emt 0:00:40]} 47. Rb8 {[%emt 0:00:35]} Kd7 {[%emt 0:00:07]} 48. Kd5 {[%emt 0:00:34]} Bc7 {[%emt 0:00:54]} 49. Ra8 {[%emt 0:00:11]} Bd8 {[%emt 0:00:40]} 50. Ra6 {[%emt 0:03:32]} g5 {[%emt 0:00:25]} 51. fxg5 {[%emt 0:00:14]} Bxg5 {[%emt 0:00:05]} 52. Rxa5 {[%emt 0:00:09]} f4 {[%emt 0:00:38]} 53. gxf4 {[%emt 0:00:23]} Bxf4 {[%emt 0:00:06]} 54. h3 {[%emt 0:00:16]} h4 {[%emt 0:00:07]} 55. Ra7+ {[%emt 0:00:13]} Kd8 {[%emt 0:00:20]} 56. Kc6 {[%emt 0:00:13]} Bg3 {[%emt 0:00:15]} 57. Rh7 {[%emt 0:00:14]} Ke8 {[%emt 0:00:30]} 58. Kb7 1-0

[Event "EYTCC Girls U18 2022"]
[Site "Thessaloniki"]
[Date "2022.07.18"]
[Round "7.11"]
[White "Buchholz, Maja"]
[Black "Dereka, Konstantina"]
[Result "0-1"]
[ECO "A14"]
[WhiteElo "1879"]
[BlackElo "1451"]
[Annotator "NA COMBH"]
[PlyCount "88"]
[EventDate "2022.07.12"]
[EventType "team-tourn"]
[EventCountry "GRE"]
[SourceTitle "playchess.com"]
[Source "ChessBase"]
[SourceQuality "1"]
[WhiteTeam "Germany"]
[BlackTeam "Greece"]
[WhiteTeamCountry "GER"]
[BlackTeamCountry "GRE"]
[TimeControl "40/5400+30:1800+30"]

1. c4 {[%emt 0:00:02]} e6 {[%emt 0:00:04]} 2. g3 {[%emt 0:00:05]} d5 {[%emt 0:00:04]} 3. Bg2 {[%emt 0:00:05]} Nf6 {[%emt 0:00:03]} 4. Nf3 {[%emt 0:00:22]} Be7 {[%emt 0:00:19]} 5. O-O {[%emt 0:00:19]} O-O {[%emt 0:00:05]} 6. b3 {[%emt 0:00:26]} b6 {[%emt 0:00:17]} 7. Bb2 {[%emt 0:00:25]} Bb7 {[%emt 0:00:10]} 8. Qc2 {[%emt 0:01:25]} c5 {[%emt 0:01:00]} 9. cxd5 {[%emt 0:00:32]} Nxd5 {[%emt 0:00:36]} 10. d4 {[%emt 0:00:57]} Nd7 {[%emt 0:05:16]} 11. Nbd2 {[%emt 0:13:48]} Rc8 {[%emt 0:03:36]} 12. Qb1 {[%emt 0:01:49]} Qc7 {[%emt 0:07:27]} 13. e4 {[%emt 0:02:26]} N5f6 {[%emt 0:01:11]} 14. Rc1 {[%emt 0:03:06]} Qb8 {[%emt 0:01:23]} 15. Qd3 {[%emt 0:11:01]} cxd4 {[%emt 0:03:48]} 16. Nxd4 {[%emt 0:01:33]} Nc5 {[%emt 0:00:54]} 17. Qe3 {[%emt 0:06:19]} Qa8 {[%emt 0:01:48]} 18. Re1 {[%emt 0:01:52]} Rfd8 {[%emt 0:07:50]} 19. h3 {[%emt 0:00:49]} Ba6 {[%emt 0:04:27]} 20. Nc4 {[%emt 0:00:48]} Bb7 {[%emt 0:03:22]} 21. f3 {[%emt 0:02:05]} Qb8 {[%emt 0:03:04]} 22. Kh2 {[%emt 0:01:07]} h5 {[%emt 0:03:47]} 23. Rad1 {[%emt 0:06:40]} h4 {[%emt 0:02:05]} 24. e5 {[%emt 0:00:32]} hxg3+ {[%emt 0:02:19]} 25. Kxg3 {[%emt 0:01:33]} Nd5 {[%emt 0:01:19]} 26. Qd2 {[%emt 0:02:41]} Nb4 {[%emt 0:05:43]} 27. Bf1 {[%emt 0:05:02]} Qa8 {[%emt 0:03:49]} 28. Be2 {[%emt 0:02:03]} Nc6 {[%emt 0:07:45]} 29. Qf4 {[%emt 0:08:39]} Nxd4 {[%emt 0:10:12]} 30. Bxd4 {[%emt 0:01:14]} Qb8 {[%emt 0:02:11]} 31. Rg1 {[%emt 0:06:41]} g5 {[%emt 0:05:22]} 32. Qg4 {[%emt 0:05:30]} f6 {[%emt 0:03:18]} 33. Kf2 {[%emt 0:02:09]} Rxd4 {[%emt 0:04:12]} 34. Rxd4 {[%emt 0:01:10]} fxe5 {[%emt 0:00:10]} 35. Rdd1 {[%emt 0:00:36]} e4 {[%emt 0:00:21]} 36. b4 {[%emt 0:02:34]} exf3 {[%emt 0:02:31]} 37. bxc5 {[%emt 0:04:15]} Bxc5+ {[%emt 0:00:07]} 38. Ne3 {[%emt 0:01:27]} Qh2+ {[%emt 0:01:11]} 39. Rg2 {[%emt 0:01:06]} Qxg2+ {[%emt 0:01:33]} 40. Qxg2 {[%emt 0:00:00]} fxg2 {[%emt 0:00:00]} 41. Bg4 {[%emt 0:03:57]} Rf8+ {[%emt 0:00:53]} 42. Ke2 {[%emt 0:00:29]} Bxe3 {[%emt 0:00:40]} 43. Bxe6+ {[%emt 0:00:17]} Kg7 {[%emt 0:01:08]} 44. Kxe3 {[%emt 0:01:00]} Rf1 {[%emt 0:00:11]} 0-1

[Event "EYTCC Girls U18 2022"]
[Site "Thessaloniki"]
[Date "2022.07.18"]
[Round "7.12"]
[White "Kapia, Aggeliki"]
[Black "Werner, Rosalie"]
[Result "0-1"]
[ECO "E92"]
[WhiteElo "1230"]
[BlackElo "1783"]
[Annotator "NA COMBH"]
[PlyCount "84"]
[EventDate "2022.07.12"]
[EventType "team-tourn"]
[EventCountry "GRE"]
[SourceTitle "playchess.com"]
[Source "ChessBase"]
[SourceQuality "1"]
[WhiteTeam "Greece"]
[BlackTeam "Germany"]
[WhiteTeamCountry "GRE"]
[BlackTeamCountry "GER"]
[TimeControl "40/5400+30:1800+30"]

1. d4 {[%emt 0:00:02]} Nf6 {[%emt 0:00:06]} 2. c4 {[%emt 0:00:17]} g6 {[%emt 0:00:09]} 3. Nc3 {[%emt 0:00:09]} Bg7 {[%emt 0:00:08]} 4. e4 {[%emt 0:00:15]} d6 {[%emt 0:00:15]} 5. Nf3 {[%emt 0:01:54]} O-O {[%emt 0:01:02]} 6. Be2 {[%emt 0:04:48]} e5 {[%emt 0:03:19]} 7. dxe5 dxe5 {[%emt 0:00:12]} 8. O-O {[%emt 0:05:21]} Nbd7 {[%emt 0:02:16]} 9. Qc2 {[%emt 0:04:17]} c6 {[%emt 0:00:38]} 10. Rd1 {[%emt 0:05:37]} Qe7 {[%emt 0:00:24]} 11. a3 {[%emt 0:09:56]} a5 {[%emt 0:03:55]} 12. h3 {[%emt 0:06:37]} Re8 {[%emt 0:03:52]} 13. Be3 {[%emt 0:00:53]} Nh5 {[%emt 0:02:27]} 14. Qc1 {[%emt 0:02:59]} Nc5 {[%emt 0:07:55]} 15. Bxc5 {[%emt 0:12:16]} Qxc5 {[%emt 0:00:08]} 16. Na4 {[%emt 0:01:21]} Qe7 {[%emt 0:18:06]} 17. Nb6 {[%emt 0:07:12]} Ra7 {[%emt 0:01:39]} 18. Nxc8 {[%emt 0:08:24]} Rxc8 {[%emt 0:00:10]} 19. g3 {[%emt 0:03:02]} Qc5 {[%emt 0:05:54]} 20. Kg2 {[%emt 0:01:04]} a4 {[%emt 0:10:18]} 21. Qd2 {[%emt 0:04:31]} Raa8 {[%emt 0:02:57]} 22. Qd7 {[%emt 0:04:33]} Nf6 {[%emt 0:06:04]} 23. Qd3 {[%emt 0:00:39]} Qa5 {[%emt 0:01:56]} 24. Qc2 {[%emt 0:01:22]} Qc7 {[%emt 0:06:35]} 25. Rac1 {[%emt 0:02:10]} Nd7 {[%emt 0:01:51]} 26. Qd2 {[%emt 0:07:30]} Nc5 {[%emt 0:00:39]} 27. Qe3 {[%emt 0:00:13]} b6 {[%emt 0:01:32]} 28. Ne1 {[%emt 0:01:31]} Bf8 {[%emt 0:04:03]} 29. Bg4 {[%emt 0:01:14]} Rd8 {[%emt 0:02:35]} 30. Be2 {[%emt 0:02:56]} Nb3 {[%emt 0:01:48]} 31. Rxd8 {[%emt 0:00:19]} Rxd8 {[%emt 0:00:28]} 32. Rd1 {[%emt 0:00:46]} Bc5 {[%emt 0:01:12]} 33. Rxd8+ {[%emt 0:01:47]} Qxd8 {[%emt 0:00:06]} 34. Qd3 {[%emt 0:00:25]} Qd4 {[%emt 0:01:23]} 35. Qxd4 {[%emt 0:00:34]} Bxd4 {[%emt 0:01:10]} 36. Nf3 {[%emt 0:01:00]} Bxb2 {[%emt 0:00:21]} 37. g4 {[%emt 0:00:32]} f6 {[%emt 0:00:31]} 38. g5 {[%emt 0:00:13]} Kf7 {[%emt 0:00:24]} 39. gxf6 {[%emt 0:00:32]} Kxf6 {[%emt 0:00:09]} 40. Ne1 Bxa3 {[%emt 0:00:00]} 41. Nc2 {[%emt 0:00:39]} Bc5 {[%emt 0:00:50]} 42. Kg3 {[%emt 0:00:40]} a3 {[%emt 0:00:13]} 0-1